[Event "Groningen Festival 2018"]
[Site "Groningen"]
[Date "2018.12.29"]
[Round "8"]
[White "Grooten, Herman"]
[Black "Jedlicka, Ales"]
[Result "0-1"]
[ECO "E92"]
[WhiteElo "2374"]
[BlackElo "2226"]
[Annotator "NA"]
[PlyCount "166"]
[EventDate "2018.12.22"]
[EventType "swiss"]
[EventCountry "NED"]
[SourceTitle "playchess.com"]
[Source "ChessBase"]
[SourceQuality "1"]
[TimeControl "40/5400+30:1800+30"]

1. d4 {[%emt 0:00:00]} Nf6 {[%emt 0:00:00]} 2. Nf3 {[%emt 0:00:00]} g6 {[%emt 0:00:02]} 3. c4 {[%emt 0:00:00]} Bg7 {[%emt 0:00:19]} 4. Nc3 {[%emt 0:00:00]} O-O {[%emt 0:00:17]} 5. e4 {[%emt 0:00:06]} d6 {[%emt 0:00:13]} 6. Be2 {[%emt 0:00:14]} e5 {[%emt 0:00:23]} 7. d5 {[%emt 0:00:26]} a5 {[%emt 0:00:25]} 8. Bg5 {[%emt 0:00:09]} h6 {[%emt 0:00:18]} 9. Bh4 {[%emt 0:00:12]} Na6 {[%emt 0:00:18]} 10. Nd2 {[%emt 0:00:09]} Bd7 {[%emt 0:00:23]} 11. a3 {[%emt 0:02:11]} Qe8 {[%emt 0:01:02]} 12. b3 {[%emt 0:00:24]} h5 {[%emt 0:00:42]} 13. h3 {[%emt 0:06:00]} Nh7 {[%emt 0:06:33]} 14. f3 {[%emt 0:06:59]} Bh6 {[%emt 0:01:49]} 15. Bf2 {[%emt 0:01:42]} Qe7 {[%emt 0:01:15]} 16. Qc2 {[%emt 0:06:04]} h4 {[%emt 0:12:09]} 17. Nf1 {[%emt 0:04:20]} Nc5 {[%emt 0:01:06]} 18. Rd1 {[%emt 0:05:16]} Bf4 {[%emt 0:01:58]} 19. Nb5 {[%emt 0:04:54]} Be8 {[%emt 0:06:55]} 20. g3 {[%emt 0:01:54]} Bg5 {[%emt 0:02:11]} 21. g4 {[%emt 0:04:03]} Bf4 {[%emt 0:11:16]} 22. Ne3 {[%emt 0:01:40]} a4 {[%emt 0:02:20]} 23. bxa4 {[%emt 0:03:43]} Nxa4 {[%emt 0:02:05]} 24. O-O {[%emt 0:09:34]} b6 {[%emt 0:01:27]} 25. Rb1 {[%emt 0:04:34]} Nc5 {[%emt 0:00:58]} 26. Qc3 {[%emt 0:01:20]} Bxb5 {[%emt 0:09:34]} 27. cxb5 {[%emt 0:00:28]} Bxe3 {[%emt 0:08:00]} 28. Qxe3 {[%emt 0:03:32]} Ra7 {[%emt 0:02:18]} 29. Rb4 {[%emt 0:03:13]} Rfa8 {[%emt 0:00:19]} 30. Ra1 {[%emt 0:00:17]} g5 {[%emt 0:00:47]} 31. Bd1 {[%emt 0:01:16]} Nf8 {[%emt 0:00:26]} 32. a4 {[%emt 0:01:36]} Ng6 {[%emt 0:00:36]} 33. Ra3 {[%emt 0:02:41]} Nf4 {[%emt 0:02:44]} 34. Kh2 {[%emt 0:00:18]} Qf6 {[%emt 0:00:59]} 35. Qd2 {[%emt 0:01:01]} Kg7 {[%emt 0:01:15]} 36. Be3 {[%emt 0:01:21]} Ra5 {[%emt 0:02:48]} 37. Bc2 {[%emt 0:03:36]} Kg6 {[%emt 0:01:45]} 38. Qd1 {[%emt 0:00:41]} Kg7 {[%emt 0:02:27]} 39. Bd2 {[%emt 0:00:25]} Kg6 {[%emt 0:02:22]} 40. Rb1 {[%emt 0:01:25]} Kg7 {[%emt 0:02:25]} 41. Qf1 {[%emt 0:30:56]} Kg6 {[%emt 0:31:42]} 42. Rd1 {[%emt 0:02:08]} Kh6 {[%emt 0:02:33]} 43. Be3 {[%emt 0:03:16]} Kg7 {[%emt 0:03:46]} 44. Bf2 {[%emt 0:05:12]} Ng6 {[%emt 0:03:08]} 45. Be3 {[%emt 0:02:29]} Nf4 {[%emt 0:00:18]} 46. Rb1 {[%emt 0:05:50]} Kg6 {[%emt 0:02:03]} 47. Rb2 {[%emt 0:02:05]} Kg7 {[%emt 0:03:25]} 48. Bd1 {[%emt 0:00:15]} Nxa4 {[%emt 0:00:00]} 49. Rba2 {[%emt 0:00:00]} Nc5 {[%emt 0:00:00]} 50. Rxa5 {[%emt 0:00:00]} bxa5 {[%emt 0:00:00]} 51. Qe1 {[%emt 0:00:00]} a4 {[%emt 0:00:00]} 52. Ra3 {[%emt 0:00:00]} Ng6 {[%emt 0:00:00]} 53. Qd2 {[%emt 0:00:00]} Kh6 {[%emt 0:00:00]} 54. Qb4 {[%emt 0:00:00]} Nf8 {[%emt 0:00:00]} 55. Kg2 {[%emt 0:00:00]} Nfd7 {[%emt 0:00:00]} 56. Bxa4 {[%emt 0:00:00]} Qd8 {[%emt 0:00:00]} 57. Bc2 {[%emt 0:00:00]} Qb8 {[%emt 0:00:00]} 58. Ra5 {[%emt 0:00:00]} f6 {[%emt 0:00:00]} 59. Bd1 {[%emt 0:00:00]} Kg6 {[%emt 0:00:00]} 60. Be2 {[%emt 0:00:00]} Kf7 {[%emt 0:00:00]} 61. Qa3 {[%emt 0:00:00]} Rxa5 {[%emt 0:00:00]} 62. Qxa5 {[%emt 0:00:00]} Kg6 {[%emt 0:00:00]} 63. Kf2 {[%emt 0:00:00]} Qb7 {[%emt 0:00:00]} 64. Ke1 {[%emt 0:00:00]} Kf7 {[%emt 0:00:00]} 65. Kd1 {[%emt 0:00:00]} Ke7 {[%emt 0:00:00]} 66. Kc2 {[%emt 0:00:00]} Kd8 {[%emt 0:00:00]} 67. Kc3 {[%emt 0:00:00]} Kc8 {[%emt 0:00:00]} 68. Kb4 {[%emt 0:00:57]} Kb8 {[%emt 0:00:00]} 69. Bc4 {[%emt 0:02:21]} Qb6 {[%emt 0:00:00]} 70. Qa3 {[%emt 0:01:56]} Na6+ {[%emt 0:00:00]} 71. Ka4 {[%emt 0:02:45]} Ndc5+ {[%emt 0:00:00]} 72. Bxc5 {[%emt 0:00:05]} Nxc5+ {[%emt 0:00:00]} 73. Kb4 {[%emt 0:00:04]} Nd7 {[%emt 0:00:11]} 74. Qc3 {[%emt 0:00:55]} Qg1 {[%emt 0:00:34]} 75. Bd3 {[%emt 0:01:17]} Nc5 {[%emt 0:00:38]} 76. Bc2 {[%emt 0:01:14]} Kb7 {[%emt 0:00:57]} 77. Qc4 {[%emt 0:00:46]} Qg2 {[%emt 0:01:41]} 78. b6 {[%emt 0:01:17]} cxb6 {[%emt 0:01:46]} 79. Qc3 {[%emt 0:00:19]} Qxh3 {[%emt 0:00:55]} 80. Ba4 {[%emt 0:00:17]} Qf1 {[%emt 0:00:52]} 81. Bc6+ {[%emt 0:00:11]} Kc7 {[%emt 0:00:21]} 82. Qa3 {[%emt 0:00:55]} Qb1+ {[%emt 0:00:35]} 83. Kc4 {[%emt 0:00:26]} Qb3+ {[%emt 0:01:15]} 0-1

[Event "Groningen Festival 2018"]
[Site "Groningen"]
[Date "2018.12.29"]
[Round "8"]
[White "Maatman, Nick"]
[Black "Krasenkow, Michal"]
[Result "1-0"]
[ECO "D35"]
[WhiteElo "2363"]
[BlackElo "2630"]
[Annotator "ChessBase"]
[PlyCount "163"]
[EventDate "2018.12.22"]
[EventType "swiss"]
[EventCountry "NED"]
[SourceTitle "playchess.com"]
[Source "ChessBase"]
[SourceQuality "1"]
[TimeControl "40/5400+30:1800+30"]

1. d4 {[%emt 0:03:56]} d5 {[%emt 0:00:00]} 2. c4 {[%emt 0:00:07]} e6 {[%emt 0:00:00]} 3. Nc3 {[%emt 0:00:33]} c6 {[%emt 0:00:02]} 4. Nf3 {[%emt 0:00:10]} Nf6 {[%emt 0:00:05]} 5. Bg5 {[%emt 0:00:19]} Nbd7 {[%emt 0:00:35]} 6. cxd5 {[%emt 0:00:13]} exd5 {[%emt 0:00:05]} 7. e3 {[%emt 0:00:57]} h6 {[%emt 0:06:01]} 8. Bh4 {[%emt 0:00:30]} g5 {[%emt 0:00:08]} 9. Bg3 {[%emt 0:00:05]} Nh5 {[%emt 0:00:04]} 10. Bd3 {[%emt 0:14:05]} Nxg3 {[%emt 0:06:50]} 11. hxg3 {[%emt 0:00:02]} Bg7 {[%emt 0:01:30]} 12. Qc2 {[%emt 0:08:56]} Nb6 {[%emt 0:01:14]} 13. O-O-O {[%emt 0:05:43]} Be6 {[%emt 0:03:08]} 14. Kb1 {[%emt 0:00:51]} Qe7 {[%emt 0:02:50]} 15. Rc1 {[%emt 0:12:50]} Nc4 {[%emt 0:11:43]} 16. Nd2 {[%emt 0:07:21]} Nd6 {[%emt 0:06:43]} 17. Na4 {[%emt 0:03:25]} f5 {[%emt 0:04:03]} 18. Nc5 {[%emt 0:03:54]} O-O {[%emt 0:04:41]} 19. Nf3 {[%emt 0:03:33]} Ne4 {[%emt 0:02:44]} 20. Nxe6 {[%emt 0:06:15]} Qxe6 {[%emt 0:00:39]} 21. Ne5 {[%emt 0:06:38]} Rac8 {[%emt 0:21:16]} 22. g4 {[%emt 0:04:23]} fxg4 {[%emt 0:03:33]} 23. f3 {[%emt 0:01:56]} Bxe5 {[%emt 0:04:43]} 24. fxe4 {[%emt 0:00:22]} Bg7 {[%emt 0:00:07]} 25. e5 {[%emt 0:00:19]} c5 {[%emt 0:01:00]} 26. Rhf1 {[%emt 0:01:26]} Rxf1 {[%emt 0:07:28]} 27. Rxf1 {[%emt 0:00:24]} Qb6 {[%emt 0:00:19]} 28. Bf5 {[%emt 0:01:43]} Rc7 {[%emt 0:00:55]} 29. dxc5 {[%emt 0:06:45]} Qa6 {[%emt 0:03:40]} 30. Rd1 {[%emt 0:01:05]} Bxe5 {[%emt 0:00:22]} 31. Rxd5 {[%emt 0:00:35]} Qf6 {[%emt 0:02:24]} 32. Bxg4 {[%emt 0:01:17]} Kg7 {[%emt 0:00:09]} 33. Bf3 {[%emt 0:00:28]} Re7 {[%emt 0:00:56]} 34. Rd1 {[%emt 0:00:55]} Bg3 {[%emt 0:01:34]} 35. Bd5 {[%emt 0:01:56]} Rxe3 {[%emt 0:02:10]} 36. Bxb7 {[%emt 0:00:22]} Re7 {[%emt 0:00:10]} 37. Bf3 {[%emt 0:00:10]} Qg6 {[%emt 0:02:05]} 38. c6 {[%emt 0:00:20]} h5 {[%emt 0:00:50]} 39. Rd7 {[%emt 0:01:07]} Rxd7 {[%emt 0:01:46]} 40. cxd7 {[%emt 0:00:15]} Bc7 {[%emt 0:00:37]} 41. Bxh5 {[%emt 0:08:05]} Qxc2+ {[%emt 0:06:42]} 42. Kxc2 {[%emt 0:00:05]} Kf6 {[%emt 0:00:03]} 43. Kd3 {[%emt 0:01:38]} Ke6 {[%emt 0:00:07]} 44. Bg4+ {[%emt 0:00:05]} Kd5 {[%emt 0:00:25]} 45. b4 {[%emt 0:04:17]} Bb6 {[%emt 0:02:15]} 46. a4 {[%emt 0:00:55]} a5 {[%emt 0:00:08]} 47. bxa5 {[%emt 0:03:59]} Bxa5 {[%emt 0:00:02]} 48. Ke3 {[%emt 0:00:11]} Ke5 {[%emt 0:10:52]} 49. Kf3 {[%emt 0:00:23]} Bd8 {[%emt 0:00:55]} 50. Bh3 {[%emt 0:00:11]} Ba5 {[%emt 0:01:49]} 51. Kg4 {[%emt 0:00:20]} Kf6 {[%emt 0:00:04]} 52. Kh5 {[%emt 0:00:09]} Bd8 {[%emt 0:01:30]} 53. Kh6 {[%emt 0:00:32]} Ba5 {[%emt 0:00:44]} 54. Bg4 {[%emt 0:00:07]} Bd8 {[%emt 0:00:08]} 55. Be2 {[%emt 0:01:23]} Ke6 {[%emt 0:00:47]} 56. Bb5 {[%emt 0:00:27]} Kf6 {[%emt 0:00:02]} 57. Kh7 {[%emt 0:03:00]} Kf7 {[%emt 0:00:06]} 58. g4 {[%emt 0:02:02]} Ba5 {[%emt 0:05:17]} 59. Bc4+ {[%emt 0:00:18]} Kf6 {[%emt 0:00:42]} 60. Kg8 {[%emt 0:00:51]} Ke7 {[%emt 0:00:10]} 61. Bb5 {[%emt 0:00:04]} Bb6 {[%emt 0:01:23]} 62. Kg7 {[%emt 0:00:47]} Bd8 {[%emt 0:00:08]} 63. Kg6 {[%emt 0:00:26]} Ke6 {[%emt 0:00:07]} 64. Bc6 {[%emt 0:02:23]} Ke7 {[%emt 0:01:49]} 65. Kf5 {[%emt 0:00:59]} Kd6 {[%emt 0:00:13]} 66. Bb5 {[%emt 0:00:06]} Kd5 {[%emt 0:00:08]} 67. a5 {[%emt 0:03:49]} Bxa5 {[%emt 0:00:08]} 68. Kxg5 {[%emt 0:00:03]} Ke6 {[%emt 0:00:23]} 69. Kh6 {[%emt 0:02:29]} Ke7 {[%emt 0:00:12]} 70. g5 {[%emt 0:00:37]} Bd2 {[%emt 0:00:05]} 71. Kh5 {[%emt 0:00:57]} Bc3 {[%emt 0:00:05]} 72. Kg6 {[%emt 0:02:19]} Bd2 {[%emt 0:00:06]} 73. Kf5 {[%emt 0:00:30]} Be3 {[%emt 0:04:58]} 74. g6 {[%emt 0:00:10]} Bd4 {[%emt 0:00:36]} 75. Ke4 {[%emt 0:00:15]} Bb6 {[%emt 0:00:19]} 76. Kd5 {[%emt 0:01:58]} Kf6 {[%emt 0:00:24]} 77. Bd3 {[%emt 0:00:05]} Ba5 {[%emt 0:00:57]} 78. Kc6 {[%emt 0:00:06]} Ke6 {[%emt 0:00:12]} 79. Kb7 {[%emt 0:00:48]} Ke7 {[%emt 0:00:49]} 80. Kc8 {[%emt 0:00:04]} Bb6 {[%emt 0:00:04]} 81. Be2 {[%emt 0:00:53]} Ba5 {[%emt 0:00:10]} 82. Bh5 {[%emt 0:00:10]} 1-0

[Event "Groningen Festival 2018"]
[Site "Groningen"]
[Date "2018.12.29"]
[Round "8"]
[White "Cerveny, Martin"]
[Black "Ashwath, R.."]
[Result "1-0"]
[ECO "D38"]
[WhiteElo "2347"]
[BlackElo "2314"]
[Annotator "NA"]
[PlyCount "145"]
[EventDate "2018.12.22"]
[EventType "swiss"]
[EventCountry "NED"]
[SourceTitle "playchess.com"]
[Source "ChessBase"]
[SourceQuality "1"]
[TimeControl "40/5400+30:1800+30"]

1. d4 {[%emt 0:00:00]} Nf6 {[%emt 0:01:44]} 2. Nf3 {[%emt 0:00:00]} d5 {[%emt 0:00:23]} 3. c4 {[%emt 0:00:00]} e6 {[%emt 0:00:03]} 4. Nc3 {[%emt 0:00:00]} Bb4 {[%emt 0:00:10]} 5. cxd5 {[%emt 0:01:01]} exd5 {[%emt 0:00:11]} 6. Bg5 {[%emt 0:00:06]} Nbd7 {[%emt 0:00:16]} 7. e3 {[%emt 0:00:13]} c5 {[%emt 0:00:28]} 8. Bd3 {[%emt 0:00:07]} Qa5 {[%emt 0:00:52]} 9. Qc2 {[%emt 0:00:08]} c4 {[%emt 0:00:35]} 10. Bf5 {[%emt 0:00:06]} O-O {[%emt 0:00:12]} 11. O-O {[%emt 0:00:05]} Re8 {[%emt 0:00:26]} 12. Nd2 {[%emt 0:00:34]} g6 {[%emt 0:05:28]} 13. Bh3 {[%emt 0:00:22]} Bxc3 {[%emt 0:01:52]} 14. Qxc3 {[%emt 0:00:53]} Qxc3 {[%emt 0:00:49]} 15. bxc3 {[%emt 0:00:02]} Ne4 {[%emt 0:00:53]} 16. Nxe4 {[%emt 0:00:06]} dxe4 {[%emt 0:01:07]} 17. Bg4 {[%emt 0:00:11]} Nb6 {[%emt 0:03:47]} 18. Be2 {[%emt 0:03:03]} Be6 {[%emt 0:10:37]} 19. Rab1 {[%emt 0:00:15]} Rac8 {[%emt 0:00:53]} 20. Rfc1 {[%emt 0:00:07]} Rc7 {[%emt 0:02:12]} 21. Bf4 {[%emt 0:15:07]} Rd7 {[%emt 0:02:07]} 22. Bg3 {[%emt 0:00:34]} Rc8 {[%emt 0:08:28]} 23. Rb4 {[%emt 0:01:40]} Rc6 {[%emt 0:02:35]} 24. a4 {[%emt 0:08:40]} Nd5 {[%emt 0:06:46]} 25. Rb5 {[%emt 0:06:08]} b6 {[%emt 0:01:57]} 26. f3 {[%emt 0:04:39]} f5 {[%emt 0:07:20]} 27. Kf2 {[%emt 0:00:23]} a6 {[%emt 0:02:19]} 28. Rbb1 {[%emt 0:00:34]} Rb7 {[%emt 0:02:39]} 29. Be5 {[%emt 0:00:11]} Rc8 {[%emt 0:04:24]} 30. g4 {[%emt 0:06:14]} b5 {[%emt 0:04:25]} 31. gxf5 {[%emt 0:06:45]} Bxf5 {[%emt 0:01:39]} 32. h4 {[%emt 0:01:17]} h5 {[%emt 0:05:08]} 33. f4 {[%emt 0:04:28]} Kh7 {[%emt 0:01:31]} 34. Bf1 {[%emt 0:01:52]} Be6 {[%emt 0:06:01]} 35. Bd6 {[%emt 0:00:30]} Rd8 {[%emt 0:05:46]} 36. Ba3 {[%emt 0:00:13]} Rdb8 {[%emt 0:00:39]} 37. Bd6 {[%emt 0:01:04]} Rd8 {[%emt 0:00:04]} 38. Bc5 {[%emt 0:00:06]} Rdb8 {[%emt 0:01:17]} 39. a5 {[%emt 0:00:33]} Ne7 {[%emt 0:08:19]} 40. Bg2 {[%emt 0:00:53]} Bd5 {[%emt 0:00:46]} 41. Bh3 {[%emt 0:31:27]} Nf5 {[%emt 0:08:30]} 42. Rg1 {[%emt 0:00:00]} Rf7 {[%emt 0:05:47]} 43. Rg5 {[%emt 0:00:00]} Rd8 {[%emt 0:02:46]} 44. Rh1 {[%emt 0:00:00]} Be6 {[%emt 0:02:22]} 45. Bg2 {[%emt 0:00:00]} Bd5 {[%emt 0:00:24]} 46. Bf1 {[%emt 0:00:00]} Nh6 {[%emt 0:03:53]} 47. Be2 {[%emt 0:00:00]} Rf5 {[%emt 0:02:04]} 48. Rg2 {[%emt 0:00:00]} Be6 {[%emt 0:00:38]} 49. Rhg1 {[%emt 0:00:00]} Rg8 {[%emt 0:00:07]} 50. Ke1 {[%emt 0:00:00]} Rd5 {[%emt 0:00:35]} 51. Kd2 {[%emt 0:00:00]} Nf5 {[%emt 0:03:58]} 52. Rg5 {[%emt 0:00:00]} Bf7 {[%emt 0:03:40]} 53. Bb4 {[%emt 0:00:00]} Rgd8 {[%emt 0:00:29]} 54. Rh1 {[%emt 0:00:00]} Nh6 {[%emt 0:00:53]} 55. Re5 {[%emt 0:00:00]} Rxe5 {[%emt 0:01:11]} 56. fxe5 {[%emt 0:00:00]} Be6 {[%emt 0:01:49]} 57. Rf1 {[%emt 0:00:00]} Bf5 {[%emt 0:00:29]} 58. Ke1 {[%emt 0:00:00]} Ng4 {[%emt 0:01:17]} 59. Bxg4 {[%emt 0:00:00]} hxg4 {[%emt 0:00:02]} 60. Kf2 {[%emt 0:00:00]} Kh6 {[%emt 0:00:43]} 61. Kg3 {[%emt 0:00:00]} Kh5 {[%emt 0:00:41]} 62. Be7 {[%emt 0:00:00]} Rd7 {[%emt 0:00:34]} 63. Bg5 {[%emt 0:00:00]} b4 {[%emt 0:00:50]} 64. cxb4 {[%emt 0:00:00]} c3 {[%emt 0:00:33]} 65. Rc1 {[%emt 0:00:00]} Rc7 {[%emt 0:00:22]} 66. d5 {[%emt 0:00:00]} c2 {[%emt 0:00:12]} 67. e6 {[%emt 0:00:00]} Rc3 {[%emt 0:00:31]} 68. b5 {[%emt 0:00:00]} Rc5 {[%emt 0:00:55]} 69. e7 {[%emt 0:00:00]} Bd7 {[%emt 0:00:29]} 70. bxa6 {[%emt 0:00:00]} Rxd5 {[%emt 0:00:37]} 71. Rxc2 {[%emt 0:00:00]} Be8 {[%emt 0:00:29]} 72. Rf2 {[%emt 0:00:19]} Rd1 {[%emt 0:00:29]} 73. Rf8 {[%emt 0:00:16]} 1-0

[Event "Groningen Festival 2018"]
[Site "Groningen"]
[Date "2018.12.29"]
[Round "8"]
[White "De Jong, Migchiel"]
[Black "Kollen, Zyon"]
[Result "1-0"]
[ECO "C15"]
[WhiteElo "2323"]
[BlackElo "2363"]
[Annotator "NA"]
[PlyCount "139"]
[EventDate "2018.12.22"]
[EventType "swiss"]
[EventCountry "NED"]
[SourceTitle "playchess.com"]
[Source "ChessBase"]
[SourceQuality "1"]
[TimeControl "40/5400+30:1800+30"]

1. e4 {[%emt 0:00:00]} e6 {[%emt 0:00:00]} 2. d4 {[%emt 0:00:26]} d5 {[%emt 0:00:00]} 3. Nc3 {[%emt 0:00:36]} Bb4 {[%emt 0:00:00]} 4. Nge2 {[%emt 0:01:16]} Nf6 {[%emt 0:00:00]} 5. e5 {[%emt 0:00:41]} Nfd7 {[%emt 0:00:00]} 6. a3 {[%emt 0:01:02]} Be7 {[%emt 0:00:05]} 7. f4 {[%emt 0:00:18]} c5 {[%emt 0:03:25]} 8. Be3 {[%emt 0:00:17]} Nc6 {[%emt 0:03:34]} 9. dxc5 {[%emt 0:01:22]} Nxc5 {[%emt 0:03:03]} 10. Nd4 {[%emt 0:00:27]} a6 {[%emt 0:04:49]} 11. Be2 {[%emt 0:05:35]} Bd7 {[%emt 0:05:08]} 12. O-O {[%emt 0:01:35]} Nxd4 {[%emt 0:14:11]} 13. Bxd4 {[%emt 0:00:11]} Na4 {[%emt 0:04:56]} 14. Nxa4 {[%emt 0:07:40]} Bxa4 {[%emt 0:00:04]} 15. b3 {[%emt 0:05:19]} Bd7 {[%emt 0:06:05]} 16. Bd3 {[%emt 0:02:16]} Qc8 {[%emt 0:07:40]} 17. Kh1 {[%emt 0:06:40]} Bc5 {[%emt 0:10:00]} 18. c3 {[%emt 0:01:43]} Bxd4 {[%emt 0:05:07]} 19. cxd4 {[%emt 0:00:08]} Qc3 {[%emt 0:00:50]} 20. f5 {[%emt 0:03:58]} exf5 {[%emt 0:01:59]} 21. Bxf5 {[%emt 0:03:56]} Bxf5 {[%emt 0:05:04]} 22. Rxf5 {[%emt 0:00:09]} Rc8 {[%emt 0:01:36]} 23. Rf3 {[%emt 0:01:20]} Qc2 {[%emt 0:01:19]} 24. Qe1 {[%emt 0:00:55]} Rc6 {[%emt 0:06:03]} 25. Qb4 {[%emt 0:02:11]} Rg6 {[%emt 0:07:46]} 26. Rg3 {[%emt 0:01:00]} Rxg3 {[%emt 0:02:51]} 27. hxg3 {[%emt 0:00:06]} Qc7 {[%emt 0:01:22]} 28. Rf1 {[%emt 0:02:36]} h5 {[%emt 0:00:14]} 29. Qa4+ {[%emt 0:03:15]} Qc6 {[%emt 0:01:55]} 30. Rc1 {[%emt 0:01:24]} Qxa4 {[%emt 0:01:48]} 31. bxa4 {[%emt 0:00:06]} Rh6 {[%emt 0:00:16]} 32. Rc5 {[%emt 0:02:13]} h4 {[%emt 0:00:23]} 33. Kh2 {[%emt 0:00:47]} hxg3+ {[%emt 0:01:04]} 34. Kxg3 {[%emt 0:00:07]} Rb6 {[%emt 0:00:04]} 35. Rxd5 {[%emt 0:00:14]} Rb3+ {[%emt 0:00:13]} 36. Kf4 {[%emt 0:00:18]} Rxa3 {[%emt 0:01:56]} 37. a5 {[%emt 0:00:09]} Ra4 {[%emt 0:02:41]} 38. g4 {[%emt 0:00:30]} Ke7 {[%emt 0:00:48]} 39. g5 {[%emt 0:00:40]} g6 {[%emt 0:00:16]} 40. Ke4 {[%emt 0:00:11]} Ra1 {[%emt 0:00:29]} 41. Rd6 {[%emt 0:31:00]} Rb1 {[%emt 0:07:01]} 42. Rf6 {[%emt 0:00:00]} Rb5 {[%emt 0:04:48]} 43. Kd3 {[%emt 0:00:00]} Rb1 {[%emt 0:01:07]} 44. Kc4 {[%emt 0:00:00]} Rc1+ {[%emt 0:02:14]} 45. Kd5 {[%emt 0:00:00]} Rb1 {[%emt 0:00:15]} 46. Ke4 {[%emt 0:00:00]} Re1+ {[%emt 0:00:48]} 47. Kd5 {[%emt 0:00:00]} Rb1 {[%emt 0:00:12]} 48. Kc5 {[%emt 0:00:00]} Rb5+ {[%emt 0:00:08]} 49. Kc4 {[%emt 0:00:00]} Rb1 {[%emt 0:13:53]} 50. d5 {[%emt 0:00:00]} Rc1+ {[%emt 0:01:02]} 51. Kd4 {[%emt 0:00:00]} Rd1+ {[%emt 0:03:42]} 52. Kc5 {[%emt 0:00:00]} Rb1 {[%emt 0:00:26]} 53. Rb6 {[%emt 0:00:00]} Rc1+ {[%emt 0:00:07]} 54. Kd4 {[%emt 0:00:00]} Rd1+ {[%emt 0:00:09]} 55. Ke4 {[%emt 0:00:00]} Re1+ {[%emt 0:00:09]} 56. Kf4 {[%emt 0:01:22]} Rf1+ {[%emt 0:00:19]} 57. Kg3 {[%emt 0:01:46]} Rg1+ {[%emt 0:00:13]} 58. Kf3 {[%emt 0:01:11]} Rxg5 {[%emt 0:02:30]} 59. Rxb7+ {[%emt 0:00:12]} Ke8 {[%emt 0:00:13]} 60. Kf4 {[%emt 0:00:28]} Rf5+ {[%emt 0:00:54]} 61. Ke4 {[%emt 0:00:07]} Rf1 {[%emt 0:00:15]} 62. d6 {[%emt 0:00:45]} Ra1 {[%emt 0:00:50]} 63. Kd5 {[%emt 0:00:23]} Rd1+ {[%emt 0:00:13]} 64. Kc6 {[%emt 0:00:26]} Rc1+ {[%emt 0:00:06]} 65. Kb6 {[%emt 0:00:17]} g5 {[%emt 0:00:27]} 66. Re7+ {[%emt 0:00:32]} Kf8 {[%emt 0:00:08]} 67. Rc7 {[%emt 0:00:08]} Rb1+ {[%emt 0:01:23]} 68. Kxa6 {[%emt 0:00:15]} g4 {[%emt 0:00:04]} 69. Rc8+ {[%emt 0:00:11]} Kg7 {[%emt 0:00:05]} 70. d7 {[%emt 0:00:06]} 1-0

[Event "Groningen Festival 2018"]
[Site "Groningen"]
[Date "2018.12.29"]
[Round "8"]
[White "Kabos, Tobias"]
[Black "Kislinsky, Alexey"]
[Result "1/2-1/2"]
[ECO "A59"]
[WhiteElo "2299"]
[BlackElo "2425"]
[Annotator "NA"]
[PlyCount "56"]
[EventDate "2018.12.22"]
[EventType "swiss"]
[EventCountry "NED"]
[SourceTitle "playchess.com"]
[Source "ChessBase"]
[SourceQuality "1"]
[TimeControl "40/5400+30:1800+30"]

1. d4 {[%emt 0:00:00]} Nf6 {[%emt 0:05:49]} 2. c4 {[%emt 0:00:00]} c5 {[%emt 0:00:14]} 3. d5 {[%emt 0:00:33]} b5 {[%emt 0:00:07]} 4. cxb5 {[%emt 0:00:48]} a6 {[%emt 0:00:05]} 5. bxa6 {[%emt 0:01:05]} g6 {[%emt 0:00:08]} 6. Nc3 {[%emt 0:00:48]} Bxa6 {[%emt 0:00:44]} 7. Nf3 {[%emt 0:00:49]} d6 {[%emt 0:00:16]} 8. e4 {[%emt 0:00:37]} Bxf1 {[%emt 0:00:10]} 9. Kxf1 {[%emt 0:00:10]} Bg7 {[%emt 0:00:07]} 10. g3 {[%emt 0:00:19]} O-O {[%emt 0:00:11]} 11. Kg2 {[%emt 0:00:09]} Qb6 {[%emt 0:00:14]} 12. a4 {[%emt 0:01:56]} Na6 {[%emt 0:00:47]} 13. a5 {[%emt 0:02:00]} Qb7 {[%emt 0:04:32]} 14. Nd2 {[%emt 0:02:00]} Nb4 {[%emt 0:04:38]} 15. Nc4 {[%emt 0:01:43]} Qa6 {[%emt 0:01:58]} 16. Nb6 {[%emt 0:10:39]} Ra7 {[%emt 0:02:46]} 17. Qa4 {[%emt 0:21:56]} Ng4 {[%emt 0:11:33]} 18. h3 {[%emt 0:18:32]} Nxf2 {[%emt 0:06:27]} 19. Kxf2 {[%emt 0:00:31]} Bd4+ {[%emt 0:00:13]} 20. Kg2 {[%emt 0:16:05]} Bxc3 {[%emt 0:00:25]} 21. bxc3 {[%emt 0:01:06]} Qe2+ {[%emt 0:00:09]} 22. Kg1 {[%emt 0:00:06]} Qe1+ {[%emt 0:03:45]} 23. Kg2 {[%emt 0:00:11]} Qxe4+ {[%emt 0:00:08]} 24. Kh2 {[%emt 0:02:16]} Qe2+ {[%emt 0:00:09]} 25. Kg1 {[%emt 0:00:08]} Qe1+ {[%emt 0:20:15]} 26. Kg2 {[%emt 0:00:10]} Qe4+ {[%emt 0:00:07]} 27. Kh2 {[%emt 0:01:00]} Qe2+ {[%emt 0:03:40]} 28. Kg1 {[%emt 0:00:11]} Qe1+ {[%emt 0:02:57]} 1/2-1/2